fUSD/lending_fUSD_20250204
["ID","MTS","AMOUNT","RATE_DAILY","PERIOD"]
[351583240,1738645845688,-590.61,8.799e-05,2]
[351583242,1738645845698,-636.29,8.799e-05,2]
[351583245,1738645845713,-1250.97,8.799e-05,2]
[351583247,1738645845723,-536.10509416,8.799e-05,2]
[351583249,1738645845733,-501.53473626,8.799e-05,2]
[351583251,1738645845742,-670.84,8.799e-05,2]
[351583253,1738645845751,-500.0,8.799e-05,2]
[351583255,1738645845762,-1640.98,8.799e-05,2]
[351583257,1738645845771,-500.42919069,8.799e-05,2]
[351583259,1738645845781,-500.0,8.799e-05,2]
[351583261,1738645845791,-500.0,8.799e-05,2]
[351583263,1738645845801,-500.0,8.799e-05,2]
[351583265,1738645845811,-500.0,8.799e-05,2]
[351583267,1738645845821,-2903.28,8.799e-05,2]
[351583269,1738645845831,-500.0,8.799e-05,2]
[351583271,1738645845841,-500.0,8.799e-05,2]
[351583273,1738645845851,-500.0,8.799e-05,2]
[351583275,1738645845860,-500.0,8.799e-05,2]
[351583277,1738645845869,-500.0,8.799e-05,2]
[351583279,1738645845879,-501.94,8.799e-05,2]
[351583281,1738645845888,-500.0,8.799e-05,2]
[351583283,1738645845897,-500.0,8.799e-05,2]
[351583285,1738645845907,-851.62,8.799e-05,2]
[351583287,1738645845916,-1454.82,8.799e-05,2]
[351583289,1738645845926,-1365.59,8.799e-05,2]
[351583290,1738645845935,-500.0,8.799e-05,2]
[351583291,1738645845944,-3033.1,8.799e-05,2]
[351583292,1738645845958,-500.0,8.799e-05,2]
[351583293,1738645845968,-500.0,8.799e-05,2]
[351583294,1738645845978,-500.0,8.799e-05,2]
[351583295,1738645845988,-500.0,8.799e-05,2]
[351583296,1738645845998,-500.0,8.799e-05,2]
[351583297,1738645846007,-500.0,8.799e-05,2]
[351583298,1738645846017,-500.0,8.799e-05,2]
[351583299,1738645846026,-939.9,8.799e-05,2]
[351583300,1738645846035,-1016.08,8.799e-05,2]
[351583301,1738645846045,-500.0,8.799e-05,2]
[351583302,1738645846055,-500.0,8.799e-05,2]
[351583304,1738645846068,-500.0,8.799e-05,2]
[351583306,1738645846077,-500.0,8.799e-05,2]
[351583308,1738645846086,-1579.42,8.799e-05,2]
[351583309,1738645846095,-500.0,8.799e-05,2]
[351583310,1738645846105,-956.53,8.799e-05,2]
[351583311,1738645846114,-500.0,8.799e-05,2]
[351583312,1738645846123,-552.89,8.799e-05,2]
[351583313,1738645846132,-500.0,8.799e-05,2]
[351583314,1738645846144,-767.92,8.799e-05,2]
[351583315,1738645846153,-500.0,8.799e-05,2]
[351583316,1738645846163,-2557.22,8.799e-05,2]
[351583318,1738645846171,-1803.09,8.799e-05,2]
[351583319,1738645846181,-944.4,8.799e-05,2]
[351583320,1738645846190,-1835.58,8.799e-05,2]
[351583321,1738645846200,-500.0,8.799e-05,2]
[351583322,1738645846212,-2754.52,8.799e-05,2]
[351583324,1738645846221,-515.76957442,8.799e-05,2]
[351583325,1738645846232,-501.41181247,8.799e-05,2]
[351583326,1738645846242,-500.0,8.799e-05,2]
[351583327,1738645846252,-853.14,8.799e-05,2]
[351583328,1738645846262,-918.71,8.799e-05,2]
[351583329,1738645846271,-500.0,8.799e-05,2]
[351583330,1738645846281,-500.0,8.799e-05,2]
[351583332,1738645846291,-2070.5,8.799e-05,2]
[351583334,1738645846301,-1030.89,8.799e-05,2]
[351583335,1738645846311,-2597.62,8.799e-05,2]
[351583336,1738645846321,-500.0,8.799e-05,2]
[351583337,1738645846331,-1229.68,8.799e-05,2]
[351583338,1738645846340,-500.26273874,8.799e-05,2]
[351583339,1738645846349,-504.56223932,8.799e-05,2]
[351583340,1738645846359,-1590.0,8.799e-05,2]
[351583341,1738645846368,-500.0,8.799e-05,2]
[351583342,1738645846379,-641.0234916,8.799e-05,2]
[351583343,1738645846388,-500.0,8.799e-05,2]
[351583344,1738645846398,-2362.04,8.799e-05,2]
[351583345,1738645846407,-1475.43,8.799e-05,2]
[351583346,1738645846417,-500.0,8.799e-05,2]
[351583347,1738645846426,-500.0,8.799e-05,2]
[351583348,1738645846436,-500.0,8.799e-05,2]
[351583349,1738645846446,-500.0,8.799e-05,2]
[351583350,1738645846460,-2358.07,8.799e-05,2]
[351583351,1738645846470,-769.95,8.799e-05,2]
[351583352,1738645846480,-500.62574631,8.799e-05,2]
[351583353,1738645846490,-500.0,8.799e-05,2]
[351583354,1738645846500,-1206.75,8.799e-05,2]
[351583355,1738645846509,-2225.45,8.799e-05,2]
[351583356,1738645846519,-500.0,8.799e-05,2]
[351583357,1738645846529,-500.0,8.799e-05,2]
[351583358,1738645846539,-500.0,8.799e-05,2]
[351583359,1738645846548,-500.0,8.799e-05,2]
[351583360,1738645846558,-500.0,8.799e-05,2]
[351583361,1738645846567,-500.0,8.799e-05,2]
[351583362,1738645846577,-500.0,8.799e-05,2]
[351583363,1738645846587,-500.0,8.799e-05,2]
[351583364,1738645846596,-500.0,8.799e-05,2]
[351583365,1738645846605,-509.19399461,8.799e-05,2]
[351583367,1738645846615,-500.0,8.799e-05,2]
[351583369,1738645846625,-500.0,8.799e-05,2]
[351583372,1738645846634,-500.0,8.799e-05,2]
[351583374,1738645846643,-500.75622432,8.799e-05,2]
[351583375,1738645846653,-500.0,8.799e-05,2]
[351583378,1738645846663,-1071.58,8.799e-05,2]
[351583379,1738645846672,-3499.05,8.799e-05,2]
[351583381,1738645846681,-501.03630121,8.799e-05,2]
[351583383,1738645846691,-805.13,8.799e-05,2]
[351583386,1738645846703,-500.0,8.799e-05,2]
[351583387,1738645846713,-1678.75,8.799e-05,2]
[351583389,1738645846723,-500.8860728,8.799e-05,2]
[351583391,1738645846733,-500.0,8.799e-05,2]
[351583394,1738645846743,-597.34,8.799e-05,2]
[351583396,1738645846752,-500.0,8.799e-05,2]
[351583397,1738645846761,-1972.72,8.799e-05,2]
[351583399,1738645846771,-500.0,8.799e-05,2]
[351583401,1738645846780,-500.0,8.799e-05,2]
[351583403,1738645846790,-500.0,8.799e-05,2]
[351583405,1738645846799,-2273.81,8.799e-05,2]
[351583407,1738645846810,-500.0,8.799e-05,2]
[351583410,1738645846820,-3074.12,8.799e-05,2]
[351583412,1738645846829,-500.0,8.799e-05,2]
[351583414,1738645846840,-500.0,8.799e-05,2]
[351583416,1738645846850,-500.0,8.799e-05,2]
[351583417,1738645846860,-500.0,8.799e-05,2]
[351583420,1738645846870,-500.0,8.799e-05,2]
[351583421,1738645846879,-682.96,8.799e-05,2]
[351583424,1738645846889,-500.95098492,8.799e-05,2]
[351583426,1738645846899,-500.0,8.799e-05,2]
[351583428,1738645846909,-500.54913328,8.799e-05,2]
[351583430,1738645846919,-500.0,8.799e-05,2]
[351583432,1738645846929,-500.0,8.799e-05,2]
[351583434,1738645846941,-501.16274785,8.799e-05,2]
[351583436,1738645846954,-950.48,8.799e-05,2]
[351583438,1738645846966,-666.0,8.799e-05,2]
[351583440,1738645846975,-500.0,8.799e-05,2]
[351583442,1738645846984,-500.7243758,8.799e-05,2]
[351583444,1738645846994,-500.0,8.799e-05,2]
[351583446,1738645847004,-1666.52,8.799e-05,2]
[351583448,1738645847013,-500.0,8.799e-05,2]
[351583449,1738645847023,-1761.18,8.799e-05,2]
[351583450,1738645847033,-500.0,8.799e-05,2]
[351583451,1738645847043,-500.0,8.799e-05,2]
[351583452,1738645847053,-500.0,8.799e-05,2]
[351583453,1738645847064,-2128.72,8.799e-05,2]
[351583454,1738645847075,-555.39959625,8.799e-05,2]
[351583455,1738645847085,-3008.0,8.799e-05,2]
[351583456,1738645847095,-500.0,8.799e-05,2]
[351583457,1738645847104,-1544.42,8.799e-05,2]
[351583458,1738645847115,-517.05068129,8.799e-05,2]
[351583459,1738645847124,-500.0,8.799e-05,2]
[351583461,1738645847134,-623.76,8.799e-05,2]
[351583463,1738645847144,-2029.66,8.799e-05,2]
[351583465,1738645847155,-1504.37,8.799e-05,2]
[351583467,1738645847164,-831.52,8.799e-05,2]
[351583469,1738645847174,-500.0,8.799e-05,2]
[351583471,1738645847183,-500.0,8.799e-05,2]
[351583473,1738645847192,-500.0,8.799e-05,2]
[351583475,1738645847206,-2059.1,8.799e-05,2]
[351583477,1738645847215,-2747.01,8.799e-05,2]
[351583479,1738645847225,-2446.0,8.799e-05,2]
[351583481,1738645847234,-1362.69,8.799e-05,2]
[351583483,1738645847244,-500.0,8.799e-05,2]
[351583485,1738645847253,-500.0,8.799e-05,2]
[351583487,1738645847262,-505.42,8.799e-05,2]
[351583489,1738645847271,-500.0,8.799e-05,2]
[351583491,1738645847280,-840.6,8.799e-05,2]
[351583493,1738645847290,-1085.43,8.799e-05,2]
[351583495,1738645847299,-1085.43,8.799e-05,2]
[351583497,1738645847309,-1085.43,8.799e-05,2]
[351583499,1738645847318,-500.0,8.799e-05,2]
[351583501,1738645847328,-1085.43,8.799e-05,2]
[351583503,1738645847337,-500.0,8.799e-05,2]
[351583505,1738645847347,-500.0,8.799e-05,2]
[351583507,1738645847356,-1085.43,8.799e-05,2]
[351583509,1738645847365,-1085.43,8.799e-05,2]
[351583511,1738645847375,-1823.78,8.799e-05,2]
[351583513,1738645847384,-500.0,8.799e-05,2]
[351583515,1738645847394,-1664.14,8.799e-05,2]
[351583517,1738645847404,-545.52,8.799e-05,2]
[351583519,1738645847414,-627.59226153,8.799e-05,2]
[351583521,1738645847424,-506.93652158,8.799e-05,2]
[351583523,1738645847434,-2099.22,8.799e-05,2]
[351583525,1738645847443,-3480.04,8.799e-05,2]
[351583527,1738645847456,-500.0,8.799e-05,2]
[351583528,1738645847465,-500.0,8.799e-05,2]
[351583530,1738645847475,-500.0,8.799e-05,2]
[351583532,1738645847484,-500.0,8.799e-05,2]
[351583535,1738645847494,-500.0,8.799e-05,2]
[351583537,1738645847504,-500.0,8.799e-05,2]
[351583538,1738645847514,-500.0,8.799e-05,2]
[351583540,1738645847523,-501.0727589,8.799e-05,2]
[351583542,1738645847533,-500.0,8.799e-05,2]
[351583545,1738645847543,-2435.11,8.799e-05,2]
[351583547,1738645847553,-1807.68,8.799e-05,2]
[351583549,1738645847562,-500.0,8.799e-05,2]
[351583551,1738645847571,-2462.54,8.799e-05,2]
[351583553,1738645847581,-877.78,8.799e-05,2]
[351583555,1738645847592,-3765.01,8.799e-05,2]
[351583556,1738645847602,-501.29102988,8.799e-05,2]
[351583559,1738645847611,-501.21469484,8.799e-05,2]
[351583560,1738645847621,-500.0,8.799e-05,2]
[351583562,1738645847631,-1737.6,8.799e-05,2]
[351583565,1738645847642,-500.61660906,8.799e-05,2]
[351583568,1738645847651,-500.0,8.799e-05,2]
[351583570,1738645847661,-500.0,8.799e-05,2]
[351583573,1738645847672,-2202.14,8.799e-05,2]
[351583575,1738645847683,-2092.27,8.799e-05,2]
[351583576,1738645847694,-500.0,8.799e-05,2]
[351583578,1738645847708,-500.7081137,8.799e-05,2]
[351583580,1738645847717,-500.0,8.799e-05,2]
[351583582,1738645847727,-2496.76,8.799e-05,2]
[351583584,1738645847737,-500.0,8.799e-05,2]
[351583586,1738645847747,-500.0,8.799e-05,2]
[351583588,1738645847756,-2934.75,8.799e-05,2]
[351583606,1738645847765,-3030.66,8.799e-05,2]
[351583608,1738645847930,-500.0,8.799e-05,2]
[351583610,1738645847939,-1196.89,8.799e-05,2]
[351583612,1738645847951,-1560.79,8.799e-05,2]
[351583614,1738645847961,-500.0,8.799e-05,2]
[351583616,1738645847971,-2560.56,8.799e-05,2]
[351583618,1738645847980,-500.0,8.799e-05,2]
[351583620,1738645847990,-1894.32,8.799e-05,2]
[351583621,1738645847999,-500.0,8.799e-05,2]
[351583622,1738645848010,-514.02642388,8.799e-05,2]
[351583623,1738645848021,-3260.05,8.799e-05,2]
[351583625,1738645848030,-500.0,8.799e-05,2]
[351583626,1738645848040,-701.53,8.799e-05,2]
[351583627,1738645848049,-539.86,8.799e-05,2]
[351583628,1738645848065,-939.54,8.799e-05,2]
[351583629,1738645848075,-547.6,8.799e-05,2]
[351583630,1738645848086,-500.0,8.799e-05,2]
[351583631,1738645848097,-502.00088633,8.799e-05,2]
[351583632,1738645848107,-500.0,8.799e-05,2]
[351583633,1738645848117,-3882.26,8.799e-05,2]
[351583634,1738645848127,-500.0,8.799e-05,2]
[351583635,1738645848137,-672.61,8.799e-05,2]
[351583636,1738645848147,-500.0,8.799e-05,2]
[351583637,1738645848158,-3203.69,8.799e-05,2]
[351583638,1738645848168,-500.0,8.799e-05,2]
[351583639,1738645848178,-500.0,8.799e-05,2]
[351583640,1738645848188,-922.09,8.799e-05,2]
[351583641,1738645848198,-504.1894061,8.799e-05,2]
[351583642,1738645848208,-500.0,8.799e-05,2]
[351583643,1738645848217,-500.0,8.799e-05,2]
[351583644,1738645848226,-7187.31,8.799e-05,2]
[351583645,1738645848237,-677.45,8.799e-05,2]
[351583646,1738645848247,-901.13,8.799e-05,2]
[351583647,1738645848257,-503.54984857,8.799e-05,2]
[351583648,1738645848267,-500.0,8.799e-05,2]
[351583649,1738645848276,-500.0,8.799e-05,2]
[351583650,1738645848286,-2795.77,8.799e-05,2]
[351583651,1738645848296,-500.0,8.799e-05,2]
[351583652,1738645848306,-500.0,8.799e-05,2]
[351583653,1738645848315,-3511.35,8.799e-05,2]
[351583654,1738645848325,-571.17595381,8.799e-05,2]
[351583655,1738645848335,-500.0,8.799e-05,2]
[351583656,1738645848344,-500.0,8.799e-05,2]
[351583657,1738645848354,-979.73,8.799e-05,2]
[351583658,1738645848364,-500.0,8.799e-05,2]
[351583659,1738645848374,-540.17,8.799e-05,2]
[351583660,1738645848384,-500.0,8.799e-05,2]
[351583661,1738645848395,-1655.69,8.799e-05,2]
[351583662,1738645848405,-500.0,8.799e-05,2]
[351583663,1738645848415,-824.3,8.799e-05,2]
[351583665,1738645848424,-501.47870251,8.799e-05,2]
[351583667,1738645848434,-500.0,8.799e-05,2]
[351583669,1738645848444,-500.0,8.799e-05,2]
[351583671,1738645848453,-501.12596227,8.799e-05,2]
[351583673,1738645848463,-1771.92,8.799e-05,2]
[351583675,1738645848473,-500.0,8.799e-05,2]
[351583677,1738645848484,-500.0,8.799e-05,2]
[351583679,1738645848495,-500.0,8.799e-05,2]
[351583681,1738645848505,-1282.73,8.799e-05,2]
[351583683,1738645848516,-1041.72,8.799e-05,2]
[351583685,1738645848526,-2263.49,8.799e-05,2]
[351583687,1738645848536,-3442.35,8.799e-05,2]
[351583689,1738645848547,-582.99,8.799e-05,2]
[351583691,1738645848557,-567.57,8.799e-05,2]
[351583693,1738645848567,-850.73,8.799e-05,2]
[351583695,1738645848576,-500.0,8.799e-05,2]
[351583697,1738645848586,-500.0,8.799e-05,2]
[351583699,1738645848596,-597.81,8.799e-05,2]
[351583701,1738645848605,-500.0,8.799e-05,2]
[351583703,1738645848615,-9431.76,8.799e-05,2]
[351583705,1738645848624,-1338.15,8.799e-05,2]
[351583707,1738645848635,-541.27,8.799e-05,2]
[351583709,1738645848645,-3229.86,8.799e-05,2]
[351583711,1738645848654,-500.0,8.799e-05,2]
[351583713,1738645848665,-500.0,8.799e-05,2]
[351583715,1738645848675,-500.0,8.799e-05,2]
[351583717,1738645848685,-502.01239042,8.799e-05,2]
[351583719,1738645848695,-2592.22,8.799e-05,2]
[351583721,1738645848712,-776.46,8.799e-05,2]
[351583724,1738645848724,-500.0,8.799e-05,2]
[351583725,1738645848734,-500.0,8.799e-05,2]
[351583727,1738645848744,-500.0,8.799e-05,2]
[351583729,1738645848754,-2263.13,8.799e-05,2]
[351583731,1738645848766,-2046.02,8.799e-05,2]
[351583733,1738645848776,-500.0,8.799e-05,2]
[351583736,1738645848786,-500.0,8.799e-05,2]
[351583738,1738645848796,-500.0,8.799e-05,2]
[351583740,1738645848806,-500.0,8.799e-05,2]
[351583741,1738645848815,-500.0,8.799e-05,2]
[351583743,1738645848825,-2322.63,8.799e-05,2]
[351583746,1738645848835,-500.0,8.799e-05,2]
[351583748,1738645848845,-500.0,8.799e-05,2]
[351583750,1738645848855,-500.0,8.799e-05,2]
[351583752,1738645848865,-3203.7,8.799e-05,2]
[351583754,1738645848874,-2799.88,8.799e-05,2]
[351583756,1738645848885,-1468.31,8.799e-05,2]
[351583758,1738645848895,-1076.9,8.799e-05,2]
[351583760,1738645848904,-500.0,8.799e-05,2]
[351583762,1738645848914,-500.0,8.799e-05,2]
[351583764,1738645848924,-2731.22,8.799e-05,2]
[351583766,1738645848933,-855.76,8.799e-05,2]
[351583768,1738645848943,-500.0,8.799e-05,2]
[351583769,1738645848953,-500.0,8.799e-05,2]
[351583771,1738645848963,-500.0,8.799e-05,2]
[351583772,1738645848973,-920.32,8.799e-05,2]
[351583773,1738645848983,-500.0,8.799e-05,2]
[351583774,1738645848992,-500.0,8.799e-05,2]
[351583775,1738645849002,-500.0,8.799e-05,2]
[351583776,1738645849013,-500.0,8.799e-05,2]
[351583777,1738645849022,-500.0,8.799e-05,2]
[351583778,1738645849032,-2717.75,8.799e-05,2]
[351583779,1738645849042,-2799.09,8.799e-05,2]
[351583780,1738645849052,-3174.19,8.799e-05,2]
[351583781,1738645849062,-501.51617504,8.799e-05,2]
[351583782,1738645849073,-505.80452575,8.799e-05,2]
[351583783,1738645849082,-500.0,8.799e-05,2]
[351583784,1738645849093,-500.0,8.799e-05,2]
[351583785,1738645849103,-2630.07,8.799e-05,2]
[351583786,1738645849112,-559.63239064,8.799e-05,2]
[351583787,1738645849121,-2851.76,8.799e-05,2]
[351583788,1738645849131,-500.0,8.799e-05,2]
[351583789,1738645849140,-503.97459197,8.799e-05,2]
[351583790,1738645849150,-500.0,8.799e-05,2]
[351583791,1738645849159,-500.0,8.799e-05,2]
[351583792,1738645849169,-500.0,8.799e-05,2]
[351583793,1738645849179,-1298.76,8.799e-05,2]
[351583794,1738645849189,-500.0,8.799e-05,2]
[351583795,1738645849202,-500.0,8.799e-05,2]
[351583796,1738645849211,-500.0,8.799e-05,2]
[351583797,1738645849221,-500.0,8.799e-05,2]
[351583798,1738645849231,-500.0,8.799e-05,2]
[351583799,1738645849240,-500.0,8.799e-05,2]
[351583800,1738645849249,-550.93742887,8.799e-05,2]
[351583801,1738645849258,-500.0,8.799e-05,2]
[351583802,1738645849268,-500.0,8.799e-05,2]
[351583803,1738645849277,-3027.82,8.799e-05,2]
[351583804,1738645849287,-1527.46,8.799e-05,2]
[351583805,1738645849297,-500.0,8.799e-05,2]
[351583806,1738645849307,-643.22,8.799e-05,2]
[351583807,1738645849316,-535.16,8.799e-05,2]
[351583808,1738645849327,-750.58,8.799e-05,2]
[351583809,1738645849337,-1973.13,8.799e-05,2]
[351583810,1738645849346,-2255.74,8.799e-05,2]
[351583811,1738645849356,-500.0,8.799e-05,2]
[351583812,1738645849365,-500.0,8.799e-05,2]
[351583813,1738645849375,-500.61639005,8.799e-05,2]
[351583814,1738645849385,-836.82,8.799e-05,2]
[351583815,1738645849395,-501.07860334,8.799e-05,2]
[351583816,1738645849405,-1753.19,8.799e-05,2]
[351583817,1738645849415,-500.0,8.799e-05,2]
[351583818,1738645849424,-471.01103888,8.799e-05,2]
[351583819,1738645849433,-2479.33,8.799e-05,2]
[351583820,1738645849442,-1597.06,8.799e-05,2]
[351583821,1738645849452,-3597.97,8.799e-05,2]
[351583822,1738645849461,-501.47265917,8.799e-05,2]
[351583823,1738645849472,-500.0,8.799e-05,2]
[351583824,1738645849482,-500.0,8.799e-05,2]
[351583825,1738645849492,-3185.98,8.799e-05,2]
[351583826,1738645849502,-1731.3,8.799e-05,2]
[351583827,1738645849512,-1513.95,8.799e-05,2]
[351583828,1738645849522,-500.0,8.799e-05,2]
[351583829,1738645849532,-500.0,8.799e-05,2]
[351583830,1738645849541,-1111.8,8.799e-05,2]
[351583831,1738645849551,-502.37209826,8.799e-05,2]
[351583832,1738645849560,-536.33212401,8.799e-05,2]
[351583833,1738645849572,-500.0,8.799e-05,2]
[351583834,1738645849582,-3169.8,8.799e-05,2]
[351583835,1738645849592,-500.0,8.799e-05,2]
[351583836,1738645849602,-1659.78,8.799e-05,2]
[351583837,1738645849612,-830.97,8.799e-05,2]
[351583838,1738645849623,-500.0,8.799e-05,2]
[351583839,1738645849632,-500.0,8.799e-05,2]
[351583840,1738645849642,-3000.86,8.799e-05,2]
[351583841,1738645849652,-1334.65,8.799e-05,2]
[351583842,1738645849661,-500.0,8.799e-05,2]
[351583843,1738645849671,-3236.82,8.799e-05,2]
[351583844,1738645849681,-500.88404751,8.799e-05,2]
[351583845,1738645849691,-500.0,8.799e-05,2]
[351583846,1738645849701,-607.43,8.799e-05,2]
[351583847,1738645849726,-339.80308628,8.799e-05,2]
[351583848,1738645849736,-500.0,8.799e-05,2]
[351583849,1738645849745,-568.73,8.799e-05,2]
[351583850,1738645849754,-500.0,8.799e-05,2]
[351583851,1738645849764,-630.76,8.799e-05,2]
[351583852,1738645849774,-501.47354634,8.799e-05,2]
[351583853,1738645849784,-500.0,8.799e-05,2]
[351583854,1738645849795,-500.0,8.799e-05,2]
[351583855,1738645849805,-500.0,8.799e-05,2]
[351583856,1738645849815,-2298.73,8.799e-05,2]
[351583857,1738645849824,-500.0,8.799e-05,2]
[351583858,1738645849834,-500.0,8.799e-05,2]
[351583859,1738645849843,-500.0,8.799e-05,2]
[351583860,1738645849852,-549.87714979,8.799e-05,2]
[351583861,1738645849862,-500.0,8.799e-05,2]
[351583862,1738645849871,-500.0,8.799e-05,2]
[351583863,1738645849882,-1000.0,8.799e-05,2]
[351583864,1738645849892,-500.86522456,8.799e-05,2]
[351583865,1738645849902,-500.0,8.799e-05,2]
[351583866,1738645849911,-500.0,8.799e-05,2]
[351583867,1738645849921,-504.57160923,8.799e-05,2]
[351583868,1738645849930,-500.0,8.799e-05,2]
[351583869,1738645849940,-2793.0,8.799e-05,2]
[351583870,1738645849949,-177.45,8.8e-05,2]
[351583871,1738645849959,-1167.0,8.8e-05,2]
[351583872,1738645849968,-124958.20098195,8.8e-05,2]
[351583873,1738645849978,-150.0,8.8e-05,2]
[351583874,1738645849987,-150.0,8.8e-05,2]
[351583875,1738645849996,-150.0,8.8e-05,2]
[351583876,1738645850006,-11314.10361878,8.8e-05,2]
[351583877,1738645850015,-735.7297965,8.8e-05,2]
[351583878,1738645850024,-5505.78852439,8.8e-05,2]
[351583879,1738645850034,-150.0,8.8e-05,2]
[351583880,1738645850043,-8032.47429579,8.8e-05,2]
[351583881,1738645850052,-150.0,8.8e-05,2]
[351583882,1738645850063,-127158.01181727,8.8e-05,2]
[351583883,1738645850072,-990033.49619083,8.8e-05,2]
[351583884,1738645850100,-422.13642386,8.8e-05,2]
[351583885,1738645850132,-25014.99999998,8.8e-05,2]
[351583886,1738645851017,-7271.7562,8.699e-05,2]
[351583887,1738645851026,-500.0,8.799e-05,2]
[351583888,1738645851035,-500.0,8.799e-05,2]
[351583889,1738645851045,-500.0,8.799e-05,2]
[351583890,1738645851054,-1166.4438,8.8e-05,2]
[351583891,1738645851065,-5549.36999998,8.8e-05,2]
[351583892,1738645851092,-739.38283102,8.8e-05,2]
[351583893,1738645851103,-22385.31561654,8.8e-05,2]
[351583894,1738645852024,-426.12,8.799e-05,2]
[351583895,1738645852049,-73.88,8.799e-05,2]
[351583896,1738645852058,-612.818748,8.8e-05,2]
[351583897,1738645852088,-723.30532381,8.8e-05,2]
[351583898,1738645852100,-10455.37025064,8.8e-05,2]
[351583899,1738645940902,703.0,7.917e-05,2]
[351583900,1738646007352,460.77,7.901e-05,2]
[351583901,1738646056201,243.65,7.898e-05,2]
[351583902,1738646173223,479.39,7.857e-05,2]
[351583904,1738646450142,500.0,8.799e-05,7]
[351583905,1738646450383,500.0,8.936e-05,7]
[351583907,1738646617724,4701.0,8.8e-05,7]
[351583908,1738646851142,-150.0,8.148e-05,2]
[351583909,1738646851166,-172.83,8.176e-05,2]
[351583910,1738646851190,-330.396606,8.178e-05,2]
[351583911,1738646851215,-1000.0,8.219e-05,2]
[351583912,1738646851238,-163.95,8.219e-05,2]
[351583913,1738646851261,-2073.09,8.219e-05,2]
[351583914,1738646851286,-250.0,8.219e-05,2]
[351583915,1738646851309,-1577.39,8.219e-05,2]
[351583916,1738646851332,-1864.85779755,8.219e-05,2]
[351583917,1738646851356,-8.71684459,8.22e-05,2]
[351583918,1738646919081,246.27645263,0.000148,120]
[351583919,1738646924629,422.9844399,0.0001,120]
[351583920,1738646974438,242.57,7.746e-05,2]
[351583935,1738647031653,-348.8093,8.119e-05,2]
[351583936,1738647031662,-542.14320441,8.22e-05,2]
[351583937,1738647031712,-1975.58,8.22e-05,2]
[351583938,1738647031724,-295.95831041,8.22e-05,2]
[351583939,1738647031736,-680.82500004,8.22e-05,2]
[351583940,1738647031783,-796.77664055,8.22e-05,2]
[351583941,1738647031793,-1700.0,8.22e-05,2]
[351583942,1738647031802,-500.0,8.5e-05,3]
[351583943,1738647031812,-1100.0,8.6e-05,3]
[351583944,1738647031822,-150.0,8.664e-05,2]
[351583945,1738647031831,-150.0,8.664e-05,2]
[351583946,1738647031841,-150.0,8.673e-05,2]
[351583947,1738647031851,-150.0,8.673e-05,2]
[351583948,1738647031862,-150.0,8.675e-05,2]
[351583949,1738647031872,-150.0,8.675e-05,2]
[351583950,1738647031882,-150.0,8.677e-05,2]
[351583951,1738647031892,-150.0,8.69e-05,2]
[351583952,1738647031902,-150.0,8.692e-05,2]
[351583954,1738647032091,-150.0,8.693e-05,2]
[351583955,1738647032120,-499.99,8.693e-05,2]
[351583956,1738647032130,-150.99,8.693e-05,2]
[351583957,1738647032139,-999.99,8.693e-05,2]
[351583958,1738647032149,-9999.99,8.693e-05,2]
[351583959,1738647032158,-150.0,8.695e-05,2]
[351583960,1738647032167,-5000.0,8.697e-05,2]
[351583961,1738647032175,-150.0,8.697e-05,2]
[351583962,1738647032183,-1249.195,8.699e-05,2]
[351583963,1738647032192,-3256.4449,8.699e-05,2]
[351583964,1738647032201,-1700.0,8.7e-05,3]
[351583965,1738647032210,-150.0,8.701e-05,2]
[351583966,1738647032220,-150.0,8.705e-05,2]
[351583968,1738647032229,-150.0,8.705e-05,2]
[351583970,1738647032239,-150.0,8.709e-05,2]
[351583971,1738647032249,-150.0,8.711e-05,2]
[351583973,1738647032259,-242.57,8.714e-05,2]
[351583975,1738647032269,-150.0,8.719e-05,2]
[351583977,1738647032278,-150.0,8.719e-05,2]
[351583979,1738647032288,-150.0,8.72e-05,2]
[351583981,1738647032297,-150.0,8.723e-05,2]